Cogmind - Beta 16 @@@ ROGUE MODE // 2025.12.13 @ 01:43:23 Player: H3-MLN Result: Destroyed by Decapitator with Experimental Terror Saw Performance ------------- Evolutions (7) 3500 Regions Visited (15) 3000 Robots Destroyed (87) 435 Value Destroyed (3216) 3216 Prototype IDs (40) 800 Alien Tech Used (2) 400 Bonus (1806) 1806 TOTAL SCORE: 13157 Bonus ------- High Alert Combat Kills 6 Registered with UFD 300 Met Optimus in HQ 500 Met Warlord at Base 500 MAIN.C Attacked Warlord 500 Cogmind --------- Core Integrity 0/1300 Matter 234/300 Energy 20/100 System Corruption 6% Temperature Cool (0) Movement Core (350) Ox6 Location -3/Protoforge Parts ------- > --- POWER (2) -------- (None) > --- PROPULSION (6) --- (None) > --- UTILITY (11) ----- (None) > --- WEAPON (2) ------- Concept Heavy Railcannon > --- INVENTORY (5) ---- Subatomic Replicator CPS Tube (2) Peak State ------------ > --- POWER ------------ Vortex Chain Reactor > --- PROPULSION ------- Combat Antigrav System Combat Antigrav System Antigrav Array Antigrav Array > --- UTILITY ---------- Long-range Sensor Array Advanced Signal Interpreter Long-range Terrain Scanner Advanced Melee Analysis Suite Advanced Melee Analysis Suite Improved Force Booster Improved Transmission Jammer Experimental Cloaking Device Advanced EM Shield Improved Hacking Suite Advanced Corruption Screen > --- WEAPON ----------- Nova Cannon Companion Sword > --- INVENTORY -------- Subatomic Replicator Vortex Driver Core Cannon CPS Tube [Rating: 160] Favorites ----------- Power Subdweller Power Source Engine Subdweller Power Source Power Core Micro Fission Core Reactor Vortex Chain Reactor Propulsion Light Treads Treads Light Treads Leg Myomer Leg Wheel Subdweller Monowheel Hover Unit Backup Propulsion III Flight Unit Makeshift Flight Unit Utility Advanced Signal Interpreter Device Advanced Sensor Array Storage Huge Storage Unit Processor Advanced Signal Interpreter Hackware Improved Hacking Suite Protection Improved Medium Armor Plating Weapon Companion Sword Energy Gun Medium Laser Energy Cannon Nova Cannon Ballistic Gun Assault Rifle Ballistic Cannon Concept Heavy Railcannon Launcher Missile Launcher Special Weapon RU-N14's Throwing Claymores v3 Slashing Weapon Companion Sword Piercing Weapon Plasma Lance Special Melee Weapon Datajack Build | -11 -10 -10 -10 -7 -7 -5 -4 -4 -4 -4 -4 -3 -3 -3 -3 ------- Run | Yrd Mat Min Sub Rec Scr Fac Fac Was Fac Upp War Pro Res Qua Frg Slots Evolved 14 | . . . . . . 10 2 . . . . . 2 . . Power 1 | . . . . . . 1 . . . . . . . . . Propulsion 4 | . . . . . . 3 1 . . . . . . . . Utility 9 | . . . . . . 6 1 . . . . . 2 . . Weapon . | . . . . . . . . . . . . . . . . Parts Attached 136 | 7 1 . 9 4 9 5 9 . 37 . 24 1 11 10 9 Power 12 | 1 . . 1 1 . . 2 . 4 . 1 . 1 . 1 Engine 7 | 1 . . 1 1 . . 2 . 2 . . . . . . Core 1 | . . . . . . . . . 1 . . . . . . Reactor 4 | . . . . . . . . . 1 . 1 . 1 . 1 Propulsion 41 | 2 . . 3 1 3 1 . . 14 . 9 . 3 3 2 Treads 4 | 1 . . 2 1 . . . . . . . . . . . Leg 3 | . . . . . . . . . 3 . . . . . . Wheel 4 | 1 . . 1 . 1 . . . 1 . . . . . . Hover 21 | . . . . . . . . . 5 . 8 . 3 3 2 Flight 9 | . . . . . 2 1 . . 5 . 1 . . . . Utility 58 | 2 1 . 1 2 3 3 7 . 17 . 7 1 5 7 2 Device 32 | 1 . . . . 1 2 5 . 11 . 6 . 2 3 1 Storage 3 | 1 1 . . 1 . . . . . . . . . . . Processor 16 | . . . . . . 1 2 . 4 . 1 1 3 3 1 Hackware 4 | . . . . . 1 . . . 2 . . . . 1 . Protection 3 | . . . 1 1 1 . . . . . . . . . . Artifact . | . . . . . . . . . . . . . . . . Weapon 25 | 2 . . 4 . 3 1 . . 2 . 7 . 2 . 4 Energy Gun 1 | 1 . . . . . . . . . . . . . . . Energy Cannon 7 | . . . 2 . . . . . . . 1 . 2 . 2 Ballistic Gun 2 | 1 . . 1 . . . . . . . . . . . . Ballistic Cannon 2 | . . . . . . . . . . . . . . . 2 Launcher 2 | . . . 1 . . 1 . . . . . . . . . Special Weapon 3 | . . . . . . . . . 1 . 2 . . . . Impact Weapon . | . . . . . . . . . . . . . . . . Slashing Weapon 4 | . . . . . 2 . . . . . 2 . . . . Piercing Weapon 1 | . . . . . . . . . . . 1 . . . . Special Melee Weapon 3 | . . . . . 1 . . . 1 . 1 . . . . Unidentified Prototypes 20 | . . . . . 1 1 1 . 1 . 8 . 2 2 4 Parts Lost 61 | . . . 5 3 . 6 . 5 26 . 1 . 1 2 12 Power 5 | . . . . . . 1 . 1 2 . . . . . 1 Propulsion 21 | . . . 2 1 . 2 . 1 11 . 1 . . . 3 Utility 26 | . . . 1 1 . 2 . 2 12 . . . . 2 6 Weapon 9 | . . . 2 1 . 1 . 1 1 . . . 1 . 2 Highest Loss Streak 12 | . . . 3 3 . 6 . 5 12 . 1 . 1 1 10 To Critical Strikes . | . . . . . . . . . . . . . . . . Average Backups 9 | 2 4 10 14 14 12 4 4 4 3 4 5 5 5 4 4 Power . | . 1 1 1 1 . . . . . . 1 1 . . . Propulsion 2 | 1 2 3 5 4 3 . . . . . . . . . . Utility 3 | . . 3 4 5 6 1 1 2 1 3 1 . . . . Weapon 2 | . 1 2 2 3 2 1 1 1 . . 1 3 3 2 1 Tool/Special . | . . . . . . . . . . . . . . . . Unused Backups 29 | . . . 5 2 12 1 . 1 2 . 1 . . 3 2 Power 4 | . . . 1 . . 1 . . 1 . 1 . . . . Propulsion 6 | . . . 2 . 3 . . . 1 . . . . . . Utility 8 | . . . . 2 6 . . . . . . . . . . Weapon 8 | . . . 2 . 2 . . 1 . . . . . 3 . Tool/Special 3 | . . . . . 1 . . . . . . . . . 2 Average Slot Usage (%) 76 | . 100 100 99 81 66 46 39 41 46 42 77 94 90 86 71 Engine 8 | . 14 14 14 14 12 2 4 6 1 . 3 . . . . Reactor 1 | . . . . . . . . . 1 5 3 5 3 4 2 Treads 7 | . 14 14 24 12 6 . . . . . . . . . . Wheel 6 | . 14 14 3 14 12 . . . . . . . . . . Hover 7 | . . . . . . . . . 7 10 27 31 23 20 16 Flight 1 | . . . . . 3 11 5 3 . 5 . . . . . Device 9 | . 14 14 6 . . 5 9 9 7 5 19 30 28 24 19 Storage 7 | . 14 14 14 14 12 . . . . . . . . . . Processor 5 | . . . . . . 4 7 9 11 5 7 10 17 19 20 Hackware 2 | . . . . . . 5 5 5 3 5 5 5 4 5 3 Protection 6 | . . . 7 12 14 4 . . . . . . . . . Energy Gun 1 | . 14 14 4 . . . . . . . . . . . . Energy Cannon 2 | . . . 9 12 . . . . . . . . 3 4 2 Ballistic Gun 3 | . 14 14 13 1 . . . . . . . . . . . Slashing Weapon 2 | . . . . . 1 5 5 3 4 5 5 9 4 4 3 Special Melee Weapon 1 | . . . . . 1 3 1 3 2 . 2 . . . . Peak Build Rating 160 | 7 7 9 16 16 24 35 47 46 80 45 138 142 157 160 154 Average Rating 48 | 4 7 8 13 14 16 30 35 27 47 45 90 137 152 152 128 On Entrance 50 | . 7 7 9 15 14 23 25 46 6 40 45 138 134 150 152 Avg Prop Armor Cover (%) 11 | 19 13 13 10 10 12 5 . . 8 6 8 . . 10 9 Naked Turns 2 | . . . . . 1 . . . . . . . . . 1 Heaviest Build 100 | 15 30 30 45 100 92 16 16 16 28 17 72 72 76 66 64 Greatest Support 90 | 16 16 16 40 20 28 20 17 17 75 21 70 76 83 90 90 Greatest Overweight (x) 30 | . 1 1 2 4 30 . 1 . 3 . 2 1 1 1 6 Average Overweight (x) . | . . 1 . 2 2 . . . . . . . . . . Largest Inventory Capacity 25 | 8 15 15 15 25 25 5 5 5 5 5 5 5 5 5 5 Average Capacity 13 | 7 12 15 15 20 22 5 5 5 5 5 5 5 5 5 5 Most Carried 19 | 4 5 13 15 18 19 5 5 5 5 5 5 5 5 5 5 Average Carried 9 | 2 4 10 14 15 13 4 4 4 4 4 4 5 4 4 4 Final Capacity 25 | 8 15 15 15 25 5 5 5 5 5 5 5 5 5 5 5 Final Carried 18 | 4 5 13 12 18 5 5 5 5 5 5 5 5 5 5 2 Class Distribution -------------------- 71% | Mutant 8% | Infiltrator-Ninja 3% | Scavenger-Ninja 3% | Hacker-Mutant 3% | Scientist-Ninja 3% | Scavenger-Mutant Dominant Class ---------------- Mutant | -10/Materials Mutant | -10/Mines Mutant | -10/Subcaves Mutant | -7/Recycling Mutant | -7/Scraptown Mutant | -5/Factory Mutant | -4/Factory Ninja | -4/Waste Mutant | -4/Factory Mutant | -4/Upper Caves Mutant | -4/Warlord Scavenger-Ninja | -3/Proximity Caves Infiltrator-Ninja | -3/Research Hacker-Mutant | -3/Quarantine Infiltrator-Mutant | -3/Protoforge Resources | -11 -10 -10 -10 -7 -7 -5 -4 -4 -4 -4 -4 -3 -3 -3 -3 ----------- Run | Yrd Mat Min Sub Rec Scr Fac Fac Was Fac Upp War Pro Res Qua Frg Matter Collected 2597 | 279 64 28 598 59 152 40 98 . 434 10 390 30 190 215 10 Remotely . | . . . . . . . . . . . . . . . . Salvage Created 4344 | 123 180 104 394 59 . 191 98 . 1162 . . 64 1321 364 284 Parts 204 | 7 7 3 17 . . 15 6 . 56 . . 6 43 22 22 Haulers Intercepted 7 | . . . . . . . 1 . . . . . 6 . . Recyclers Shooed . | . . . . . . . . . . . . . . . . Parts Field Recycled . | . . . . . . . . . . . . . . . . Retrieved Matter . | . . . . . . . . . . . . . . . . Parts Self-Destructed 15 | . . . 10 . . . . . . . . 5 . . . Prevented . | . . . . . . . . . . . . . . . . Parts Restored . | . . . . . . . . . . . . . . . . Kills | -11 -10 -10 -10 -7 -7 -5 -4 -4 -4 -4 -4 -3 -3 -3 -3 ------- Run | Yrd Mat Min Sub Rec Scr Fac Fac Was Fac Upp War Pro Res Qua Frg Combat Hostiles Destroyed 48 | . 4 . 10 1 . 5 . . 12 . . 1 4 4 7 Melee 27 | . . . . . . 1 . . 12 . . . 4 4 6 Guns 6 | . 4 . 2 . . . . . . . . . . . . Cannons 9 | . . . 6 1 . . . . . . . 1 . . 1 AOE 6 | . . . 2 . . 4 . . . . . . . . . Classes Destroyed 15 | 2 2 1 2 1 . 5 1 . 1 . . . . . . Worker 5 | . . 1 . . . 1 . . 2 . . . 1 . . Builder 5 | . . . . . . 1 . . 2 . . . 1 . 1 Tunneler 1 | 1 . . . . . . . . . . . . . . . Hauler 7 | . . . . . . . 1 . . . . . 6 . . Recycler 8 | 1 . 1 . . . . . . 3 . . . 3 . . Mechanic 2 | . . . . . . 1 . . 1 . . . . . . Operator 5 | . 1 . . . . 1 . . 3 . . . . . . Turret 2 | . . . 2 . . . . . . . . . . . . Watcher 4 | . . . . . . 1 . . . . . . . 3 . Swarmer 15 | . . . . . . 4 . . 6 . . . . . 5 Grunt 7 | . 4 . . . . . . . . . . . 2 . 1 Sentry 2 | . . . . 1 . . . . 1 . . . . . . Hunter 3 | . . . . . . 1 . . 2 . . . . . . Programmer 11 | . . . . . . . . . 3 . . 1 2 4 1 Subdweller 10 | . . . 10 . . . . . . . . . . . . Best Kill Streak 7 | 2 3 1 2 1 . 7 1 . 4 . . 1 4 2 5 Combat Bots Only 5 | . 3 . 2 1 . 5 . . 4 . . 1 1 2 5 Max Kills in Single Turn 5 | 1 1 1 1 1 . 5 1 . 1 . . 1 1 1 1 Gunslinging . | . . . . . . . . . . . . . . . . Exploded 4 | . . . 1 . . 4 . . . . . . . . . Melee 1 | . . . . . . 1 . . 1 . . . 1 1 1 Uniques/NPCs Destroyed . | . . . . . . . . . . . . . . . . Combat | -11 -10 -10 -10 -7 -7 -5 -4 -4 -4 -4 -4 -3 -3 -3 -3 -------- Run | Yrd Mat Min Sub Rec Scr Fac Fac Was Fac Upp War Pro Res Qua Frg Hostile Shots Fired 797 | . 20 1 94 54 . 80 1 5 218 . . 6 53 29 236 Missed 287 | . 3 1 31 22 . 43 . 2 63 . . 5 13 10 94 Hits 510 | . 17 . 63 32 . 37 1 3 155 . . 1 40 19 142 Melee 38 | . . . . . . . . 3 . . . . . . 35 Projectile 472 | . 17 . 63 32 . 37 1 . 155 . . 1 40 19 107 AOE 2 | . . . . . . . . . 1 . . . . . 1 Critical Strikes 47 | . . . . . . 3 . 3 3 . . . 4 1 33 Part Disruptions 3 | . . . . . . . . . . . 1 . . 2 . Damage Taken 9716 | . 181 . 1168 237 . 695 17 165 2661 . 50 6 583 229 3724 Core 2906 | . 20 . 203 16 . 297 17 107 1010 . 12 . 111 46 1067 Absorbed by Shields 149 | . . . . . . . . . . . . 5 144 . . Ignored by Resistances 352 | . . . . . . . . . . . . 11 145 196 . Regen/Repaired (Parts) 149 | . . . . . . 48 . . 72 . 7 . . 22 . Core Remaining (%) 43 | 100 . . . . 4 70 . . . . . . . . . Volleys Fired 125 | 3 20 5 54 10 . 2 . . . . 1 1 2 16 11 Largest 2 | 2 2 2 2 2 . 1 . . . . 1 1 1 1 1 Hottest 113 | 70 70 70 110 110 . 33 . . . . 100 . 113 113 113 Shots Fired 177 | 6 40 10 75 13 . 2 . . . . 1 1 2 16 11 Gun 89 | 6 40 10 30 3 . . . . . . . . . . . Cannon 78 | . . . 38 10 . . . . . . 1 . 2 16 11 Launcher 9 | . . . 7 . . 2 . . . . . . . . . Special 1 | . . . . . . . . . . . . 1 . . . Kinetic 53 | 3 20 5 21 3 . . . . . . . . . . 1 Thermal 109 | 3 20 5 47 10 . . . . . . . . 1 16 7 Explosive 10 | . . . 7 . . 2 . . . . . 1 . . . Electromagnetic 1 | . . . . . . . . . . . . . . . 1 Entropic 4 | . . . . . . . . . . . 1 . 1 . 2 Robot Hit Streak 12 | 3 12 5 10 3 . . . . . . . 1 . 3 1 Robot Miss Streak 4 | 1 3 2 3 2 . 1 . . . . . . . . 4 Penetration Max 1 | . . . . . . . . . . . . . . . 1 Secondary Targets . | . . . . . . . . . . . . . . . . Shots Hit Robots 265 | 3 31 5 50 9 2 7 3 . 63 . 1 1 57 17 16 Core Hits 106 | 3 9 3 18 2 . 10 1 . 24 . . 1 19 9 7 Critical Kills 1 | . . . 1 . . . . . . . . . . . . Critical Parts Destroyed . | . . . . . . . . . . . . . . . . Critical Strikes 8 | . . 1 1 . . . . . 2 . . . 4 . . Burn 1 | . . 1 . . . . . . . . . . . . . Meltdown 1 | . . . 1 . . . . . . . . . . . . Melee Attacks 219 | . . . . . 2 10 4 . 90 . 1 . 75 19 18 Impact . | . . . . . . . . . . . . . . . . Slashing 214 | . . . . . . 10 2 . 90 . . . 75 19 18 Piercing . | . . . . . . . . . . . . . . . . Sneak Attacks 36 | . . . . . 2 2 3 . 9 . 1 . 15 2 2 Combat Hostiles 2 | . . . . . . . . . . . . . . 1 1 Follow-up Attacks 6 | . . . . . . . . . 3 . . . . . 3 Damage Inflicted 11449 | 41 398 78 1448 229 . 1034 98 . 3010 . . 55 3013 869 1176 Guns 839 | 41 398 78 257 65 . . . . . . . . . . . Cannons 1251 | . . . 734 164 . . . . . . . . . 88 265 Explosions 1036 | . . . 457 . . 579 . . . . . . . . . Melee 8240 | . . . . . . 455 98 . 3010 . . . 3013 781 883 Ramming 28 | . . . . . . . . . . . . . . . 28 Kinetic 806 | 28 224 41 183 65 . . . . . . . . . . 265 Thermal 1735 | 13 174 37 808 164 . 451 . . . . . . . 88 . Explosive 585 | . . . 457 . . 128 . . . . . . . . . Electromagnetic . | . . . . . . . . . . . . . . . . Impact . | . . . . . . . . . . . . . . . . Slashing 8295 | . . . . . . 455 98 . 3010 . . 55 3013 781 883 Piercing . | . . . . . . . . . . . . . . . . Highest Corruption 16 | . 2 2 2 2 . . . 5 16 12 12 . . . 6 Average Corruption 4 | . 2 2 2 2 . . . 5 8 12 12 . . . 4 Corruption Purged 5 | . . . . . . . . . 5 . . . . . . Corruption Blocked 13 | . . . . . . . . . . . . . 4 2 7 Effects 75 | . 2 8 20 4 . . . 1 36 3 1 . . . . Message Errors 18 | . . 2 5 1 . . . . 9 . 1 . . . . Matter Fused 13 | . . 1 3 1 . . . . 8 . . . . . . Heat Flow Errors 9 | . 1 2 1 . . . . 1 3 1 . . . . . Energy Discharges 11 | . . 2 3 . . . . . 6 . . . . . . Data Loss (minor) 19 | . 1 1 7 2 . . . . 7 1 . . . . . Data Loss (major) 3 | . . . . . . . . . 2 1 . . . . . Misfires 1 | . . . 1 . . . . . . . . . . . . Misdirections 1 | . . . . . . . . . 1 . . . . . . Overload Shots . | . . . . . . . . . . . . . . . . Overflow Damage 828 | . . . . . . 137 . . 254 . . . 171 90 176 Projectiles 114 | . . . . . . . . . . . . . . 36 78 Explosions 102 | . . . . . . 102 . . . . . . . . . Melee 612 | . . . . . . 35 . . 254 . . . 171 54 98 Knockbacks 2 | . . . . . . . . . . . . . . . 2 Impact . | . . . . . . . . . . . . . . . . Kinetic 1 | . . . . . . . . . . . . . . . 1 Secondary 1 | . . . . . . . . . . . . . . . 1 Self-Inflicted Damage 126 | . . . . . . 114 . . . . . . . . 12 Shots 3 | . . . . . . 3 . . . . . . . . . Rammed 5 | . . . . . . . . . . . . . . . 5 Targets Rammed 5 | . . . . . . . . . . . . . . . 5 Kicked . | . . . . . . . . . . . . . . . . Crushed . | . . . . . . . . . . . . . . . . Highest Temperature 450 | 27 143 114 124 450 . . . 91 366 194 180 135 60 240 . Average Temperature 71 | 14 30 61 46 230 . . . 48 122 110 71 56 14 76 . Received Heat Transfer 742 | . 102 . 384 66 . 9 . . 36 . . . 34 9 102 Effects 1 | . . . . 1 . . . . . . . . . . . Matter Decay 1 | . . . . 1 . . . . . . . . . . . Siege Activations . | . . . . . . . . . . . . . . . . Martial Activations . | . . . . . . . . . . . . . . . . Shielding Activations . | . . . . . . . . . . . . . . . . Robots Disrupted 2 | . . . . . . . . . . . . . 1 1 . Combat Hostiles 1 | . . . . . . . . . . . . . . 1 . Robots Corrupted . | . . . . . . . . . . . . . . . . Combat Hostiles . | . . . . . . . . . . . . . . . . Parts Fried . | . . . . . . . . . . . . . . . . Impact Corruptions 2 | . . . . . . . . . . . . . . . 2 Robots Melted 1 | . . . 1 . . . . . . . . . . . . Combat Hostiles . | . . . . . . . . . . . . . . . . Parts Melted 4 | . . . 4 . . . . . . . . . . . . Heat Transferred 2570 | 37 518 185 1184 222 . 350 . . . . . . . 74 . Parts Sabotaged . | . . . . . . . . . . . . . . . . Parts Stolen . | . . . . . . . . . . . . . . . . Parts Stripped . | . . . . . . . . . . . . . . . . Power Chain Reactions . | . . . . . . . . . . . . . . . . Alert | -11 -10 -10 -10 -7 -7 -5 -4 -4 -4 -4 -4 -3 -3 -3 -3 ------- Run | Yrd Mat Min Sub Rec Scr Fac Fac Was Fac Upp War Pro Res Qua Frg Maximum Alert Level 2 | . . . . . . 2 . . . . . . . . 1 Low Security (%) 97 | 100 100 100 . 100 . 70 100 100 100 . . . 100 100 76 Level 1 2 | . . . . . . 21 . . . . . . . . 23 Level 2 . | . . . . . . 7 . . . . . . . . . Level 3 . | . . . . . . . . . . . . . . . . Level 4 . | . . . . . . . . . . . . . . . . Level 5 . | . . . . . . . . . . . . . . . . High Security . | . . . . . . . . . . . . . . . . Max Security . | . . . . . . . . . . . . . . . . Peak Influence 409 | 10 95 31 . 51 . 409 175 51 55 . . . 58 63 342 Initial 175 | . . 31 . 17 . . 175 51 . . . . . 27 16 Average 29 | . 21 2 . 22 . 132 160 24 16 . . . 15 15 113 Influence Increases 2365 | 10 145 25 40 113 . 484 22 . 441 . . 45 235 274 531 Destroy 0b10 Robot/C 800 | . 80 . 40 20 . 100 . . 240 . . 20 80 80 140 Destroy 0b10 Robot/NC 185 | 10 5 10 . . . 25 5 . 55 . . . 55 15 5 Destroy Leader 150 | . 10 . . . . 22 2 . 50 . . 10 20 26 10 Successful Hack 216 | . 5 . . . . 43 . . 45 . . . 50 49 24 Select Force Hacks 90 | . . . . 90 . . . . . . . . . . . Disable Machine 345 | . . . . . . 195 15 . 30 . . . . 75 30 Anti-Garrison Action 200 | . . . . . . . . . . . . . . . 200 Destroy Structure 139 | . . . . 3 . 54 . . 6 . . . 30 14 32 Partial Spotted 15 | . . . . . . 15 . . . . . . . . . Lose Combat Pursuer 225 | . 45 15 . . . 30 . . 15 . . 15 . 15 90 Influence Decreases 2088 | 10 65 105 3 149 1 125 234 147 433 8 . 45 185 294 284 Entered New Map 391 | . . 49 . 20 1 . 184 96 . 4 . . . 23 14 Time Decay 1264 | 10 65 56 3 110 . 65 50 20 260 4 . 45 175 251 150 Lost Part 433 | . . . . 19 . 60 . 31 173 . . . 10 20 120 Squads Dispatched 20 | . 2 1 . . . 3 . . 5 . . . 5 2 2 Investigation 6 | . 1 1 . . . 2 . . . . . . . . 2 Extermination 5 | . . . . . . . . . 2 . . . 1 2 . Reinforcement 9 | . 1 . . . . 1 . . 3 . . . 4 . . Assault . | . . . . . . . . . . . . . . . . Garrison . | . . . . . . . . . . . . . . . . Intercept . | . . . . . . . . . . . . . . . . Searches Triggered . | . . . . . . . . . . . . . . . . Construction Impeded . | . . . . . . . . . . . . . . . . Haulers Reinforced 3 | . . . . . . . . . . . . . 3 . . Active Scanning Responses . | . . . . . . . . . . . . . . . . Cargo Convoy Interrupts . | . . . . . . . . . . . . . . . . Stealth | -11 -10 -10 -10 -7 -7 -5 -4 -4 -4 -4 -4 -3 -3 -3 -3 --------- Run | Yrd Mat Min Sub Rec Scr Fac Fac Was Fac Upp War Pro Res Qua Frg Distress Signals 7 | . 2 . . . . 1 . . 3 . 1 . . . . Communications Jammed 14 | . . . . . . . . . . . . . 10 . 4 Distress Signals 14 | . . . . . . . . . . . . . 10 . 4 Times Spotted 133 | . 10 1 12 1 . 15 4 6 23 . 8 2 18 8 25 Peak Tracking Total 17 | . 6 2 3 1 . 7 4 6 5 . 4 2 7 3 17 Tactical Retreats 9 | . 2 1 . . . 1 . . 1 . . 1 . 1 2 Traps | -11 -10 -10 -10 -7 -7 -5 -4 -4 -4 -4 -4 -3 -3 -3 -3 ------- Run | Yrd Mat Min Sub Rec Scr Fac Fac Was Fac Upp War Pro Res Qua Frg Traps Triggered 6 | . 1 . . . . . 1 . . . 1 . . 2 1 Indirectly . | . . . . . . . . . . . . . . . . Trap Hack Attempts . | . . . . . . . . . . . . . . . . Triggered . | . . . . . . . . . . . . . . . . Disarmed . | . . . . . . . . . . . . . . . . Reprogrammed . | . . . . . . . . . . . . . . . . Reused . | . . . . . . . . . . . . . . . . Traps Extracted . | . . . . . . . . . . . . . . . . Installed . | . . . . . . . . . . . . . . . . Triggered . | . . . . . . . . . . . . . . . . Machines | -11 -10 -10 -10 -7 -7 -5 -4 -4 -4 -4 -4 -3 -3 -3 -3 ---------- Run | Yrd Mat Min Sub Rec Scr Fac Fac Was Fac Upp War Pro Res Qua Frg Machines Disabled 25 | . . . 1 . . 13 1 . 2 . 1 . . 5 2 Max in Single Turn 13 | . . . 1 . . 13 1 . 1 . 1 . . 1 1 Garrison Access 2 | . . . . . . . . . . . . . . 1 1 Machines Repaired . | . . . . . . . . . . . . . . . . Machines Dismantled . | . . . . . . . . . . . . . . . . Machines Sabotaged . | . . . . . . . . . . . . . . . . Overloaded Fab Kills . | . . . . . . . . . . . . . . . . Hacking | -11 -10 -10 -10 -7 -7 -5 -4 -4 -4 -4 -4 -3 -3 -3 -3 --------- Run | Yrd Mat Min Sub Rec Scr Fac Fac Was Fac Upp War Pro Res Qua Frg Machines Accessed 51 | . 4 1 . 3 3 4 . . 10 . 3 . 7 11 5 Terminals 20 | . 3 . . . . 1 . . 5 . . . 2 7 2 Fabricators 4 | . . . . . . 1 . . 1 . . . 2 . . Repair Stations 6 | . . . . . . 1 . . 2 . . . . 1 2 Recycling Units 8 | . 1 . . 3 . 1 . . 2 . . . 1 . . Scanalyzers 4 | . . . . . . . . . . . . . 2 2 . Garrison Access 2 | . . . . . . . . . . . . . . 1 1 Total Hacks 132 | . 11 1 . 8 10 17 . . 22 . 7 . 22 24 10 Successful 70 | . 5 1 . 6 10 9 . . 10 . 7 . 10 8 4 Failed 61 | . 5 . . 2 . 8 . . 12 . . . 12 16 6 Catastrophic 10 | . 1 . . . . . . . 3 . . . . 3 3 Database Lockouts 1 | . 1 . . . . . . . . . . . . . . Manual 33 | . 6 . . 3 . 8 . . 3 . . . 4 3 6 Terminals 49 | . 9 . . . . 7 . . 9 . . . 4 15 5 Fabricators 10 | . . . . . . 3 . . 1 . . . 6 . . Repair Stations 16 | . . . . . . 4 . . 5 . . . . 3 4 Recycling Units 22 | . 2 . . 8 . 3 . . 7 . . . 2 . . Scanalyzers 14 | . . . . . . . . . . . . . 10 4 . Garrison Access 3 | . . . . . . . . . . . . . . 2 1 Terminal Hacks 31 | . 3 1 . . 10 3 . . 2 . 7 . 2 2 1 Record 3 | . . . . . 3 . . . . . . . . . . Part Schematic 1 | . 1 . . . . . . . . . . . . . . Robot Analysis 6 | . . . . . 6 . . . . . . . . . . Prototype ID Bank 6 | . 1 . . . . . . . . . 5 . . . . Open Door 4 | . . 1 . . 1 . . . . . 2 . . . . Branch Access Points 1 | . . . . . . . . . . . . . 1 . . Terminal Index 2 | . . . . . . 1 . . . . . . . . 1 Locate Traps 3 | . 1 . . . . 1 . . . . . . . 1 . Hauler Manifests 1 | . . . . . . . . . 1 . . . . . . Zone Layout 4 | . . . . . . 1 . . 1 . . . 1 1 . Fabricator Hacks 1 | . . . . . . 1 . . . . . . . . . Build 1 | . . . . . . 1 . . . . . . . . . Repair Station Hacks 8 | . . . . . . 1 . . 4 . . . . 2 1 Scan Component 4 | . . . . . . . . . 2 . . . . 1 1 Repair 3 | . . . . . . . . . 2 . . . . 1 . Refit 1 | . . . . . . 1 . . . . . . . . . Recycling Unit Hacks 7 | . 1 . . 3 . . . . 2 . . . 1 . . Report Inventory 5 | . 1 . . 2 . . . . 1 . . . 1 . . Retrieve Components 2 | . . . . 1 . . . . 1 . . . . . . Scanalyzer 9 | . . . . . . . . . . . . . 7 2 . Insert Component 1 | . . . . . . . . . . . . . 1 . . Analyze 1 | . . . . . . . . . . . . . 1 . . Retrieve Study 7 | . . . . . . . . . . . . . 5 2 . Garrison Access Hacks 1 | . . . . . . . . . . . . . . 1 . Seal Access 1 | . . . . . . . . . . . . . . 1 . Unauthorized Hacks 13 | . 1 . . 3 . 4 . . 2 . . . . 1 2 Terminals 6 | . . . . . . 3 . . 1 . . . . 1 1 Track 1 | . . . . . . . . . . . . . . . 1 Assimilate 1 | . . . . . . . . . . . . . . 1 . Botnet 2 | . . . . . . 1 . . 1 . . . . . . Operators 1 | . . . . . . 1 . . . . . . . . . Skim 1 | . . . . . . 1 . . . . . . . . . Fabricators . | . . . . . . . . . . . . . . . . Repair Stations 1 | . . . . . . 1 . . . . . . . . . Patch 1 | . . . . . . 1 . . . . . . . . . Recycling Units 5 | . 1 . . 3 . . . . 1 . . . . . . Recyclers 2 | . 1 . . . . . . . 1 . . . . . . Tunnel 3 | . . . . 3 . . . . . . . . . . . Scanalyzers . | . . . . . . . . . . . . . . . . Garrison Access 1 | . . . . . . . . . . . . . . . 1 Jam 1 | . . . . . . . . . . . . . . . 1 Data Cores Recovered 1 | . . . . . . . . . 1 . . . . . . Used . | . . . . . . . . . . . . . . . . Hacking Detections 38 | . 4 . . . . 4 . . 10 . . . 6 10 4 Full Trace Events 3 | . 1 . . . . 1 . . . . . . . . 1 Feedback Events . | . . . . . . . . . . . . . . . . Feedback Blocked . | . . . . . . . . . . . . . . . . Robot Schematics Acquired . | . . . . . . . . . . . . . . . . Robots Built . | . . . . . . . . . . . . . . . . Authchips . | . . . . . . . . . . . . . . . . Time . | . . . . . . . . . . . . . . . . Total Robot Build Rating . | . . . . . . . . . . . . . . . . Part Schematics Acquired 2 | . 1 . . . . . . . . . . . 1 . . Parts Built 2 | . . . . . . 2 . . . . . . . . . Authchips . | . . . . . . . . . . . . . . . . Time 53 | . . . . . . 53 . . . . . . . . . Total Part Build Rating 12 | . . . . . . 12 . . . . . . . . . Part Studies Acquired 7 | . . . . . . . . . . . . . 5 2 . Parts Repaired 3 | . . . . . . . . . 2 . . . . 1 . Time 180 | . . . . . . . . . 118 . . . . 62 . Parts Recycled . | . . . . . . . . . . . . . . . . Recycled Matter . | . . . . . . . . . . . . . . . . Retrieved Matter . | . . . . . . . . . . . . . . . . Retrieved Components 4 | . . . . 3 . . . . 1 . . . . . . Parts Scanalyzed 1 | . . . . . . . . . . . . . 1 . . Part Schematics Acquired 1 | . . . . . . . . . . . . . 1 . . Parts Damaged . | . . . . . . . . . . . . . . . . Bothacking | -11 -10 -10 -10 -7 -7 -5 -4 -4 -4 -4 -4 -3 -3 -3 -3 ------------ Run | Yrd Mat Min Sub Rec Scr Fac Fac Was Fac Upp War Pro Res Qua Frg Used RIF Installer . | . . . . . . . . . . . . . . . . Robots Hacked 4 | . . . . . 2 . 1 . . . 1 . . . . Non-combat 1 | . . . . . . . 1 . . . . . . . . Combat 3 | . . . . . 2 . . . . . 1 . . . . Robot Hacks Applied 4 | . . . . . 2 . 1 . . . 1 . . . . parse_system 3 | . . . . . 2 . . . . . 1 . . . . find_chute 1 | . . . . . . . 1 . . . . . . . . Relay Couplers Released . | . . . . . . . . . . . . . . . . Fabnet Peak Effective % . | . . . . . . . . . . . . . . . . Robots Rewired . | . . . . . . . . . . . . . . . . Allies Hacked . | . . . . . . . . . . . . . . . . Hacks Repelled . | . . . . . . . . . . . . . . . . Allies | -11 -10 -10 -10 -7 -7 -5 -4 -4 -4 -4 -4 -3 -3 -3 -3 -------- Run | Yrd Mat Min Sub Rec Scr Fac Fac Was Fac Upp War Pro Res Qua Frg Total Allies 2 | . . . . . . . . 1 . . . . . 1 . Largest Group 1 | . . . . . . . . 1 . . . . . 1 . Highest-Rated Group 46 | . . . . . . . . 46 . . . . . 26 . Highest-Rated Ally 46 | . . . . . . . . 46 . . . . . 26 . Total Orders . | . . . . . . . . . . . . . . . . Ally Attacks 11 | . . . . . . . . 11 . . . . . . . Total Damage 287 | . . . . . . . . 287 . . . . . . . Kills . | . . . . . . . . . . . . . . . . Allies Corrupted 1 | . . . . . . . . . . . . . . 1 . Allies Melted 1 | . . . . . . . . . . . 1 . . . . Intel | -11 -10 -10 -10 -7 -7 -5 -4 -4 -4 -4 -4 -3 -3 -3 -3 ------- Run | Yrd Mat Min Sub Rec Scr Fac Fac Was Fac Upp War Pro Res Qua Frg Active Infowar (turns) 5551 | 18 277 664 915 . . . 68 43 737 72 829 210 646 894 178 Optics 1346 | . . . . . . . . . . . 433 210 646 57 . Sensors 3381 | . . . . . . . 45 43 737 72 791 205 638 850 . IFF 967 | . . . . . . . . . . . . . 579 388 . Terrain 1296 | . . . . . . . . . . . . . 616 502 178 Structural 142 | . . . . . . . . . 142 . . . . . . Seismic 1874 | 18 277 664 915 . . . . . . . . . . . . T.N.C. 600 | . . . . . . . 32 40 . . . . 98 430 . Machine Analysis 466 | . . . . . . . . . . . . 28 438 . . Cloaking 1913 | . . . . . . . . . . . 99 115 629 894 176 Jamming 1649 | . . . . . . . 28 . . . 1 19 531 894 176 Robot Analysis Total 6 | . . . . . 6 . . . . . . . . . . Derelict Logs Recovered 6 | . . 1 . . 5 . . . . . . . . . . Drone Launches . | . . . . . . . . . . . . . . . . Drone Recoveries . | . . . . . . . . . . . . . . . . Exploration | -11 -10 -10 -10 -7 -7 -5 -4 -4 -4 -4 -4 -3 -3 -3 -3 ------------- Run | Yrd Mat Min Sub Rec Scr Fac Fac Was Fac Upp War Pro Res Qua Frg Turns Passed 11198 | 78 277 664 1876 241 3551 194 112 75 1170 72 829 210 646 894 309 Spaces Moved 9736 | 57 184 541 817 139 2461 301 143 136 1326 78 957 348 763 1152 333 Core 554 | 6 . . . . 53 . . 63 426 . . . . . 6 Treads 570 | . . . 570 . . . . . . . . . . . . Legs 102 | . . . . . . . . . 102 . . . . . . Wheels 2727 | 51 184 541 247 139 1515 . . . 50 . . . . . . Hover 4356 | . . . . . . . . . 738 78 950 348 763 1152 327 Flight 1427 | . . . . . 893 301 143 73 10 . 7 . . . . Fastest Speed 32 | 50 100 115 115 120 52 35 55 50 32 46 38 33 38 45 36 Average Speed 91 | 94 107 115 176 137 142 50 55 52 58 46 54 38 42 51 55 Slowest Speed 1550 | 100 115 115 260 150 1550 55 145 55 275 46 195 96 110 115 350 Overloaded Moves 40 | . . . . . . . . . . . . 40 . . . Propulsion Burnouts . | . . . . . . . . . . . . . . . . Robots Hopped 8 | . . . . . . 2 . 6 . . . . . . . Potential Cave-ins 16 | . . . . . . . . . . . . . . 2 14 Cave-ins Triggered . | . . . . . . . . . . . . . . . . Teleports 1 | . . . . . . . . . . . . . . 1 . Exploration Rate (%) 45 | 4 45 91 35 31 87 9 3 90 22 19 94 66 18 90 17 Regions Visited 15 Branch Regions 9 Pre-discovered Areas 6 | . . 1 . 3 2 . . . . . . . . . . Known Exits Taken 6 | . . . . . . . . . 1 1 1 1 1 1 . Unknown Exits Taken 7 | 1 1 1 1 1 1 1 . . . . . . . . . Scrap Searched 13 | . . 1 3 . 5 . . . . 1 . 3 . . . Spaces Dug 19 | . . . . . . . . . 3 . . . 7 5 4 Terrain Destroyed 111 | . . . 36 3 . 31 . . 3 . 1 11 7 9 10 Melee 7 | . . . . . . . . . 3 . . . 4 . . Projectile 28 | . . . 2 3 . . . . . . 1 . 3 9 10 AOE 76 | . . . 34 . . 31 . . . . . 11 . . . Terrain Rammed . | . . . . . . . . . . . . . . . . Walls Destroyed . | . . . . . . . . . . . . . . . . Machines Disabled . | . . . . . . . . . . . . . . . . Actions | -11 -10 -10 -10 -7 -7 -5 -4 -4 -4 -4 -4 -3 -3 -3 -3 --------- Run | Yrd Mat Min Sub Rec Scr Fac Fac Was Fac Upp War Pro Res Qua Frg Total 11526 | 71 222 573 1175 177 2505 327 168 134 1575 113 1266 422 971 1404 423 Wait 1083 | 1 18 20 265 14 . 8 7 . 106 34 233 70 93 175 39 Move 9709 | 56 183 540 816 138 2460 296 143 126 1325 77 956 347 762 1151 333 Hop 5 | . . . . . . 2 . 3 . . . . . . . Pick Up 64 | 4 . 8 12 8 10 2 1 1 4 1 3 . 3 6 1 Fast Attach 120 | 7 . . 2 . 7 2 8 . 37 . 23 1 11 14 8 Attach 27 | . . . 4 2 2 2 2 . 5 1 3 . 1 1 4 Detach 10 | . . . . 1 . 1 1 1 4 . 2 . . . . Swap 44 | . 1 . 9 2 1 1 . . 1 . 13 2 9 5 . Drop 118 | . . . 13 2 23 1 2 3 6 . 30 1 15 17 5 Fire 125 | 3 20 5 54 10 . 2 . . . . 1 1 2 16 11 Melee 213 | . . . . . 2 10 4 . 87 . 1 . 75 19 15 Ram 5 | . . . . . . . . . . . . . . . 5 Kick . | . . . . . . . . . . . . . . . . Crush . | . . . . . . . . . . . . . . . . Escape Stasis 2 | . . . . . . . . . . . . . . . 2 Rewire 1 | . . . . . . . . . . . 1 . . . . Trap . | . . . . . . . . . . . . . . . . Miscellaneous . | . . . . . . . . . . . . . . . . Route ------- -11/Scrapyard -10/Materials -10/Mines (discovered 2 exits: [*Mat] / [*Sub]) -10/Subcaves (discovered 2 exits: [*Mat] / *Rec) -7/Recycling -7/Scraptown (discovered 2 exits: *Fac x2) -5/Factory -4/Factory -4/Waste -4/Factory (discovered 2 exits: *Upp x2) -4/Upper Caves -4/Warlord -3/Proximity Caves -3/Research (discovered 3 exits: Arm / *Qua x2) -3/Quarantine (discovered 3 exits: [*Res] / *Sec / *Frg) -3/Protoforge History --------- Turn | Location | Event 36 | -11/Scrapyard | Discovered new exit (range 16) 79 | -11/Scrapyard | Entered Materials 165 | -10/Materials | Discovered new exit (range 14) 301 | -10/Materials | Build established: Mutant 347 | -10/Materials | Central database locked down 356 | -10/Materials | Entered Mines 409 | -10/Mines | Met a Derelict bent on vengeance 433 | -10/Mines | Discovered new exit (range 7) 545 | -10/Mines | Met a Derelict shopkeep closing up shop 1014 | -10/Mines | Discovered new exit (range 6) 1020 | -10/Mines | Entered Subcaves 1461 | -10/Subcaves | Disturbed a concealed Subdweller 1527 | -10/Subcaves | Ambushed by Subdwellers from Twisted Machinery 1616 | -10/Subcaves | Disturbed a concealed Subdweller 1804 | -10/Subcaves | Core integrity fell below 50% 1874 | -10/Subcaves | Discovered new exit (range 10) 2592 | -10/Subcaves | Core integrity fell below 20% 2614 | -10/Subcaves | Lost 3 parts (2n1u) 2860 | -10/Subcaves | Discovered new exit (range 9) 2896 | -10/Subcaves | Entered Recycling 2949 | -7/Recycling | Lost 3 parts (1n1u1w) 3099 | -7/Recycling | Scanned before Scraplab entrance 3122 | -7/Recycling | Entered Scraplab 3134 | -7/Recycling | Discovered new exit (range 3) 3137 | -7/Recycling | Entered Scraptown 3137 | -7/Scraptown | System corruption cleaned by C-Scrubber 3254 | -7/Scraptown | Visited Symbiants 3319 | -7/Scraptown | Visited CPS Storage 3350 | -7/Scraptown | Visited Comm Corps 3440 | -7/Scraptown | Visited UFD Registry 3443 | -7/Scraptown | Registered with UFD as "Autohead" 3479 | -7/Scraptown | Visited Derelict Rescue Squad 3488 | -7/Scraptown | Found DRS Beacon 3516 | -7/Scraptown | Visited Observation Area 3539 | -7/Scraptown | Visited Chapter 10 3558 | -7/Scraptown | Visited Junk Repository 3579 | -7/Scraptown | Visited Analyses Database 3611 | -7/Scraptown | Visited Scrap Suit Storage 3624 | -7/Scraptown | Visited Sword Containment 3648 | -7/Scraptown | Visited Scrapoid Research Area 3672 | -7/Scraptown | Visited Abandonware Association 3689 | -7/Scraptown | Learned abandonware demo "KABOOM.EXE" 3726 | -7/Scraptown | Visited Curators Association 4708 | -7/Scraptown | Scanned Subdweller tech in exchange for log data 4739 | -7/Scraptown | Learned Research interactive machine intel 4755 | -7/Scraptown | Learned Factory security intel 4786 | -7/Scraptown | Learned location of Zion (-7) 4832 | -7/Scraptown | Learned location of Quarantine (-3) 5635 | -7/Scraptown | Discovered new exit (range 11) 5684 | -7/Scraptown | Guru changed UFD alias to "Megacutter" 5783 | -7/Scraptown | Visited Assassins FH 6221 | -7/Scraptown | Found Prototype Slashing Weapon 6221 | -7/Scraptown | Identified Companion Sword 6657 | -7/Scraptown | Met Optimus 6657 | -7/Scraptown | Accepted into 0bPrime 6685 | -7/Scraptown | Discovered new exit (range 5) 6688 | -7/Scraptown | Entered Factory 6688 | -5/Factory | Evolved 10 slots: Power x1, Propulsion x3, Utility x6 6786 | -5/Factory | Discovered new exit (range 9) 6807 | -5/Factory | Fabricated Cmb. Gravmag System? 6882 | -5/Factory | Entered another Factory area 6882 | -4/Factory | Evolved 2 slots: Propulsion x1, Utility x1 6883 | -4/Factory | Identified exit to Extension 6902 | -4/Factory | Lost 6 parts (1p2n2u1w) 6994 | -4/Factory | Manually triggered Chute Trap 6994 | -4/Factory | Sucked down chute 6994 | -4/Factory | Entered Waste 6995 | -4/Waste | Met a frightened Derelict 7009 | -4/Waste | EMP discharged 7014 | -4/Waste | Spotted C-40 Crusher 7023 | -4/Waste | Spotted C-40 Crusher 7023 | -4/Waste | Spotted C-40 Crusher 7034 | -4/Waste | Spotted C-40 Crusher 7034 | -4/Waste | Crushed by Compactor (1 part destroyed, 2 dropped) 7034 | -4/Waste | Crushed by Compactor (1 part destroyed, 1 dropped) 7037 | -4/Waste | Crushed by Compactor (1 part destroyed, 2 dropped) 7043 | -4/Waste | Spotted C-40 Crusher 7043 | -4/Waste | Spotted C-40 Crusher 7054 | -4/Waste | Discovered new exit (range 12) 7068 | -4/Waste | Lost 5 parts (1p1n2u1w) 7069 | -4/Waste | Entered Factory 7154 | -4/Factory | Discovered new exit (range 11) 7523 | -4/Factory | Lost 4 parts (4u) 7653 | -4/Factory | Core integrity fell below 50% 7705 | -4/Factory | System corruption reached 10% 7735 | -4/Factory | Lost 12 parts (1p7n3u1w) 7756 | -4/Factory | Core integrity fell below 20% 7852 | -4/Factory | Discovered new exit (range 11) 7858 | -4/Factory | Identified exit to Upper Caves 7924 | -4/Factory | Found Prototype Device 7924 | -4/Factory | Identified Adv. EM Shield 7931 | -4/Factory | Found Adv. EM Shield 8142 | -4/Factory | Repaired Imp. Linear Gravjet 8201 | -4/Factory | Repaired Antigrav System 8235 | -4/Factory | Lost 8 parts (1p4n3u) 8239 | -4/Factory | Entered Upper Caves 8261 | -4/Upper Caves | A Derelict revealed a hidden shortcut to "reach the base" 8293 | -4/Upper Caves | Identified exit to Warlord 8311 | -4/Upper Caves | Entered Warlord 8330 | -4/Warlord | System corruption cleaned by Quarantine Array 8647 | -4/Warlord | Visited the Vortex Lab 8651 | -4/Warlord | Found Prototype Energy Cannon 8651 | -4/Warlord | Identified Vortex Driver 8655 | -4/Warlord | Found Vortex Driver 8664 | -4/Warlord | Warlord's base attacked by MAIN.C 8703 | -4/Warlord | Found Prototype Device 8703 | -4/Warlord | Identified Exp. Cloaking Device 8707 | -4/Warlord | Found Prototype Processor 8707 | -4/Warlord | Identified Spectral Analyzer 8723 | -4/Warlord | Found Prototype Reactor 8723 | -4/Warlord | Identified Vortex Chain Reactor 8771 | -4/Warlord | Rebuked by Warlord 8821 | -4/Warlord | Found Prototype Special Weapon 8821 | -4/Warlord | Identified RU-N14's Throwing Claymores v3 8824 | -4/Warlord | Found RU-N14's Throwing Claymores v3 9014 | -4/Warlord | Warlord forces counterattacked 9042 | -4/Warlord | Spotted Striker 9078 | -4/Warlord | Lost 6 allies 9091 | -4/Warlord | Spotted B-86 Titan 9097 | -4/Warlord | Spotted B-90 Cyclops 9104 | -4/Warlord | Spotted Striker 9130 | -4/Warlord | Opened side exit 9136 | -4/Warlord | Discovered new exit (range 10) 9139 | -4/Warlord | Identified exit to Proximity Caves 9140 | -4/Warlord | Entered Proximity Caves 9166 | -3/Proximity Caves | Lost 6 allies 9343 | -3/Proximity Caves | Build established: Scavenger-Ninja 9349 | -3/Proximity Caves | Discovered new exit (range 3) 9349 | -3/Proximity Caves | Identified exit to Research 9350 | -3/Proximity Caves | Entered Research 9350 | -3/Research | Evolved 2 slots: Utility x2 9351 | -3/Research | Loaded intel: 45 interactive machine locations 9586 | -3/Research | Discovered new exit (range 14) 9718 | -3/Research | Identified exit to Armory 9718 | -3/Research | Identified exit to Quarantine 9996 | -3/Research | Entered Quarantine 10025 | -3/Quarantine | Build established: Infiltrator-Ninja 10061 | -3/Quarantine | Found Prototype Device 10061 | -3/Quarantine | Identified Adv. Kinecellerator 10081 | -3/Quarantine | Found Alien Artifact 10090 | -3/Quarantine | Found Gamma Bomb Array 10094 | -3/Quarantine | Cryocooling Duct disabled 10109 | -3/Quarantine | Ambient heat levels rising (+20) 10109 | -3/Quarantine | Non-combat units ordered to evacuate 10144 | -3/Quarantine | Found Alien Artifact 10144 | -3/Quarantine | Identified Transdimensional Reconstructor 10144 | -3/Quarantine | Warped through subspace 10372 | -3/Quarantine | Repaired Lrn. Terrain Scanner? 10661 | -3/Quarantine | Discovered new exit (range 15) 10679 | -3/Quarantine | Found Alien Energy Cannon 10699 | -3/Quarantine | Build established: Hacker-Mutant 10714 | -3/Quarantine | Found Alien Reactor 10837 | -3/Quarantine | Spotted Fortress 10883 | -3/Quarantine | Discovered new exit (range 5) 10883 | -3/Quarantine | Discovered new exit (range 6) 10885 | -3/Quarantine | Identified exit to Protoforge 10886 | -3/Quarantine | Identified exit to Section 7 10890 | -3/Quarantine | Entered Protoforge 10933 | -3/Protoforge | Spotted Hotshot 10949 | -3/Protoforge | Spotted Hotshot 10950 | -3/Protoforge | Spotted Hotshot 10950 | -3/Protoforge | Spotted Hotshot 10984 | -3/Protoforge | Spotted Hotshot 11067 | -3/Protoforge | Superfortress began startup sequence 11092 | -3/Protoforge | Found Prototype Device 11092 | -3/Protoforge | Identified Cep. Recoil Nullifier 11096 | -3/Protoforge | Identified Matter Drive 11118 | -3/Protoforge | Additional patrols dispatched to research labs 11126 | -3/Protoforge | Spotted Decapitator 11126 | -3/Protoforge | Spotted Decapitator 11153 | -3/Protoforge | Core integrity fell below 50% 11161 | -3/Protoforge | Spotted Decapitator 11161 | -3/Protoforge | Spotted Decapitator 11161 | -3/Protoforge | Spotted V053-b 11161 | -3/Protoforge | Spotted V971-i 11161 | -3/Protoforge | Spotted Decapitator 11178 | -3/Protoforge | Core integrity fell below 20% 11182 | -3/Protoforge | Found Prototype Ballistic Cannon 11182 | -3/Protoforge | Identified Cep. Heavy Railcannon 11196 | -3/Protoforge | Found Cep. Heavy Railcannon 11199 | -3/Protoforge | Destroyed by Decapitator with Experimental Terror Saw Last Messages --------------- 11176_ Imp. Hacking Suite destroyed. 11176_ Research Cell breached. 11178_ Dropped Com. HERF Cannon+. 11179_ Terrain Scan Processor severed. 11182_ Acquired Prototype Ballistic Cannon. 11182_ Identified Cep. Heavy Railcannon. 11182_ Faulty integration triggers system corruption (+3). 11184_ Adv. Signal Interpreter severed. 11186_ Machine disabled. 11191_ P-80 Master resets Decapitator, system corruption cleaned. 11192_ Slug penetrates Research Cell. 11195_ Dropped Faulty Cep. Heavy Railcannon. 11196_ Acquired Cep. Heavy Railcannon. 11197_ Railslug penetrates P-80 Master. 11197_ Destroyed Adv. Remote Datajack. 11197_ P-80 Master knocked back. 11197_ Destroyed Sml. Battery. 11197_ P-80 Master system corrupted by crushing effect. 11197_ Railslug penetrates P-80 Master. 11197_ P-80 Master destroyed. Map ----- +----------------------------------------------------+ | ?????????????????????????????????????????????????? | | ?????????????????????????????????????????????????? | | ?????????????????????????????????????????????????? | | ?????????????????????????????????????????????????? | | ?????????????????????????????????????????????????? | | ?????????????????????????????????????????????????? | | ?????????????????????????????????????????????????? | | ?????????????????????????????????????????????????? | | ?????????????????????????????????????????????????? | | ?????????????????????????????????????????????????? | | ?????????????????????????????????????????????????? | | ?????????????????????????????????????????????????? | | ?????????????????????????????????????????????????? | | ?????????????????????????????????????????????????? | | ?????????????????????????????????????????????????? | | ?????????????????????????????????????????????????? | | ?????????????????????????????????????????????????? | | ?????????????????????????????????????????????????? | | ?????????????????????????????????????????????????? | | ?????????????????????????????????????????????????? | | ?????????????????????????????????????????????????? | | ?????????????????????????????????????????????????? | | ?????????????????????????????????????????????????? | | ?????????????????##############??????????????????? | | ?????????????????#""""" c """"#??????????????????? | | ?????????????????#"[// /c@/]]"#??????????????????? | | ?????????????###?#"] ][[c[]/["#??????????????????? | | ?????????????#"""###"""%""""###??????????????????? | | ?????????????#"/]# p] "#???????????????????? | | ?????????????#"[[# %!%cp ""#???????????????????? | | ?????????????#"/ " [ """"#???????????????????? | | ?????????????#"[[" """"#???????????????????? | | ?????????????#"/[" ""#???????????????????? | | ?????????????#"[/" "#???????????????????? | | ?????????????#"][" "#???????????????????? | | ?????????????#"[]" ##???????????????????? | | ?????????????###"" Y ""????????????????????? | | ??????????????# ""#???????????????????? | | ??????????????# #???????????????????? | | ??????????????###++### ####+##??????????????????? | | ??????????????#" # #?? "#??????????????????? | | ??????????????#" # #"" "#??????????????????? | | ??????????????#" " " ##???????????????????? | | ??????????????#" " " #???????????????????? | | ??????????????#" " " #???????????????????? | | ??????????????#" " " ##???????????????????? | | ??????????????#" " ""# # " "#??????????????????? | | ??????????????#"""#??# #"""""#??????????????????? | | ?????#????????####???# #######??????????????????? | | ?????????????????????# #????????????????????????? | +----------------------------------------------------+ Best States ------------- Heat Dissipation 62 Energy Generation 55 Energy Capacity 1150 Matter Stores 300 Matter Capacity 300 Sight Range 24 Robot Scan Range 18 Terrain Scan Range 24 Terrain Scan Density 85 Jamming Range 16 Cloak Strength 4 Power Amplification 30 Additional Mass Support 9 Base Temperature (-) 200 Corruption Block 20 Armor Coverage 225 Resistance: EM 50 Weapon Shielding 66 Melee Speed Boost 20 Phase Shifting 10 Evasion (%) 71 Melee Accuracy 16 Core Analysis 6 Recoil Reduction 2 Force Boost 30 Offensive Hacking 22 Defensive Hacking 10 Authchip Count 2 Item Schematics ----------------- Huge Storage Unit | -10/Materials | Hacked CPS Tube | -3/Research | Scanalyzed Robot Schematics ------------------ None Fabricated ------------ Cmb. Gravmag System | x2 | -5/Factory | Preloaded Repaired ---------- Imp. Linear Gravjet | 61% | -4/Factory Antigrav System | 10% | -4/Factory Lrn. Terrain Scanner | 18% | -3/Quarantine Studied --------- Imp. Antigrav System | -3/Research | Hacked Hyb. Antimatter Reactor | -3/Research | Hacked Antigrav System | -3/Research | Hacked Antigrav Array | -3/Research | Hacked Nova Cannon | -3/Research | Hacked Cmb. Antigrav System | -3/Quarantine | Hacked Com. HERF Cannon | -3/Quarantine | Hacked Alien Tech Used ----------------- Transdimensional Reconstructor Matter Drive Achievements -------------- None Challenges ------------ None Game ------ Seed HeavyMachineMonowheel Manual? 0 Play Time 02:01:06 Cumulative 1155.9 hours Start 2025.12.12 @ 23:28:01 End 2025.12.13 @ 01:43:23 Sessions 1 Manual Loads 0 Difficulty Rogue Special Mode None Game No. 405 Rogue 400 Adventurer 4 Explorer 1 Win Type - Total 24 Types 13/4/1/2/0/1/0/0/2/1 Lore% 97 Gallery% 96 Achievement% 81 Wizard Run 0 Options --------- Layout 0 ASCII 0 Keyboard 0 Movement Numpad Keybinds 0 Fullscreen 2 Font 18/SmallcapsGlow Map View 76x50 Zoom Use 0% Tactical HUD 1 Map Filters NONE Filters NONE Steam 1 RUN: f713307d-05c9-42c9-a165-91ec60693d0c